Workbook

Sheet 工资输入
B1: 工资计算器 | K1: 期间结束： | L1: 43077 | N1: 公司名称： | O1: 嘉元实业
B3: ID | C3: 员工姓名 | D3: 工作的正常时数 | E3: 假期小时数 | F3: 病假小时数 | G3: 加班小时数 | H3: 加班费率 | I3: 工资总额 | J3: 税款和扣款 | K3: 其他扣款 | L3: 净薪金 | N3: 计时工资 | O3: 纳税状态 | P3: 联邦允许 | Q3: 州税 | R3: 联邦所得税 | S3: 社会保障税 | T3: 医疗保险税 | U3: 总扣缴税额 | V3: 保险扣款 | W3: 其他常规扣款 | X3: 总常规扣款
B4: 1001 | C4: 林国治 | D4: 50 | E4: 5 | F4: 1 | I4: =SUM(Employees[[#This Row],[工作的正常时数]:[病假小时数]])*Employees[[#This Row],[计时工资]]+Employees[[#This Row],[加班小时数]]*Employees[[#This Row],[加班费率]] -> 5600 | J4: =Employees[[#This Row],[工资总额]]*Employees[[#This Row],[总扣缴税额]] + Employees[[#This Row],[总常规扣款]] -> 2730.8 | K4: 200 | L4: =Employees[[#This Row],[工资总额]]-Employees[[#This Row],[税款和扣款]]-Employees[[#This Row],[其他扣款]] -> 2669.2 | N4: 100 | O4: 1 | P4: 4 | Q4: 0.023 | R4: 0.28 | S4: 0.063 | T4: 0.0145 | U4: =SUM(Employees[[#This Row],[州税]:[医疗保险税]]) -> 0.3805 | V4: 200 | W4: 400 | X4: =SUM(Employees[[#This Row],[保险扣款]:[其他常规扣款]]) -> 600
B5: 1002 | C5: 赵军 | D5: 40 | I5: =SUM(Employees[[#This Row],[工作的正常时数]:[病假小时数]])*Employees[[#This Row],[计时工资]]+Employees[[#This Row],[加班小时数]]*Employees[[#This Row],[加班费率]] -> 3200 | J5: =Employees[[#This Row],[工资总额]]*Employees[[#This Row],[总扣缴税额]] + Employees[[#This Row],[总常规扣款]] -> 1317.6 | L5: =Employees[[#This Row],[工资总额]]-Employees[[#This Row],[税款和扣款]]-Employees[[#This Row],[其他扣款]] -> 1882.4 | N5: 80 | O5: 1 | P5: 1 | Q5: 0.023 | R5: 0.28 | S5: 0.063 | T5: 0.0145 | U5: =SUM(Employees[[#This Row],[州税]:[医疗保险税]]) -> 0.3805 | V5: 0 | W5: 100 | X5: =SUM(Employees[[#This Row],[保险扣款]:[其他常规扣款]]) -> 100
B6: 1003 | C6: 史美萍 | D6: 35 | E6: 3 | I6: =SUM(Employees[[#This Row],[工作的正常时数]:[病假小时数]])*Employees[[#This Row],[计时工资]]+Employees[[#This Row],[加班小时数]]*Employees[[#This Row],[加班费率]] -> 5320 | J6: =Employees[[#This Row],[工资总额]]*Employees[[#This Row],[总扣缴税额]] + Employees[[#This Row],[总常规扣款]] -> 2404.26 | L6: =Employees[[#This Row],[工资总额]]-Employees[[#This Row],[税款和扣款]]-Employees[[#This Row],[其他扣款]] -> 2915.74 | N6: 140 | O6: 1 | P6: 3 | Q6: 0.023 | R6: 0.28 | S6: 0.063 | T6: 0.0145 | U6: =SUM(Employees[[#This Row],[州税]:[医疗保险税]]) -> 0.3805 | V6: 180 | W6: 200 | X6: =SUM(Employees[[#This Row],[保险扣款]:[其他常规扣款]]) -> 380
B7: 1008 | C7: 沙保国 | D7: 50 | E7: 5 | F7: 1 | I7: =SUM(Employees[[#This Row],[工作的正常时数]:[病假小时数]])*Employees[[#This Row],[计时工资]]+Employees[[#This Row],[加班小时数]]*Employees[[#This Row],[加班费率]] -> 11200 | J7: =Employees[[#This Row],[工资总额]]*Employees[[#This Row],[总扣缴税额]] + Employees[[#This Row],[总常规扣款]] -> 4411.6 | L7: =Employees[[#This Row],[工资总额]]-Employees[[#This Row],[税款和扣款]]-Employees[[#This Row],[其他扣款]] -> 6788.4 | N7: 200 | O7: 1 | P7: 0 | Q7: 0.023 | R7: 0.28 | S7: 0.063 | T7: 0.0145 | U7: =SUM(Employees[[#This Row],[州税]:[医疗保险税]]) -> 0.3805 | V7: 150 | X7: =SUM(Employees[[#This Row],[保险扣款]:[其他常规扣款]]) -> 150
B8: 1011 | C8: 林新宇 | D8: 40 | G8: 2 | H8: 150 | I8: =SUM(Employees[[#This Row],[工作的正常时数]:[病假小时数]])*Employees[[#This Row],[计时工资]]+Employees[[#This Row],[加班小时数]]*Employees[[#This Row],[加班费率]] -> 4300 | J8: =Employees[[#This Row],[工资总额]]*Employees[[#This Row],[总扣缴税额]] + Employees[[#This Row],[总常规扣款]] -> 2236.15 | L8: =Employees[[#This Row],[工资总额]]-Employees[[#This Row],[税款和扣款]]-Employees[[#This Row],[其他扣款]] -> 2063.85 | N8: 100 | O8: 1 | P8: 0 | Q8: 0.023 | R8: 0.28 | S8: 0.063 | T8: 0.0145 | U8: =SUM(Employees[[#This Row],[州税]:[医疗保险税]]) -> 0.3805 | V8: 200 | W8: 400 | X8: =SUM(Employees[[#This Row],[保险扣款]:[其他常规扣款]]) -> 600
B9: 1012 | C9: 韩建明 | D9: 40 | E9: 5 | F9: 1 | I9: =SUM(Employees[[#This Row],[工作的正常时数]:[病假小时数]])*Employees[[#This Row],[计时工资]]+Employees[[#This Row],[加班小时数]]*Employees[[#This Row],[加班费率]] -> 5520 | J9: =Employees[[#This Row],[工资总额]]*Employees[[#This Row],[总扣缴税额]] + Employees[[#This Row],[总常规扣款]] -> 2700.36 | L9: =Employees[[#This Row],[工资总额]]-Employees[[#This Row],[税款和扣款]]-Employees[[#This Row],[其他扣款]] -> 2819.64 | N9: 120 | O9: 1 | P9: 4 | Q9: 0.023 | R9: 0.28 | S9: 0.063 | T9: 0.0145 | U9: =SUM(Employees[[#This Row],[州税]:[医疗保险税]]) -> 0.3805 | V9: 200 | W9: 400 | X9: =SUM(Employees[[#This Row],[保险扣款]:[其他常规扣款]]) -> 600
B10: 1025 | C10: 徐艳君 | D10: 36 | F10: 2 | G10: 1 | H10: 180 | I10: =SUM(Employees[[#This Row],[工作的正常时数]:[病假小时数]])*Employees[[#This Row],[计时工资]]+Employees[[#This Row],[加班小时数]]*Employees[[#This Row],[加班费率]] -> 4740 | J10: =Employees[[#This Row],[工资总额]]*Employees[[#This Row],[总扣缴税额]] + Employees[[#This Row],[总常规扣款]] -> 2253.57 | K10: 250 | L10: =Employees[[#This Row],[工资总额]]-Employees[[#This Row],[税款和扣款]]-Employees[[#This Row],[其他扣款]] -> 2236.43 | N10: 120 | O10: 1 | P10: 2 | Q10: 0.023 | R10: 0.28 | S10: 0.063 | T10: 0.0145 | U10: =SUM(Employees[[#This Row],[州税]:[医疗保险税]]) -> 0.3805 | V10: 250 | W10: 200 | X10: =SUM(Employees[[#This Row],[保险扣款]:[其他常规扣款]]) -> 450
B11: 1032 | C11: 洪国明 | D11: 40 | E11: 5 | F11: 1 | I11: =SUM(Employees[[#This Row],[工作的正常时数]:[病假小时数]])*Employees[[#This Row],[计时工资]]+Employees[[#This Row],[加班小时数]]*Employees[[#This Row],[加班费率]] -> 4600 | J11: =Employees[[#This Row],[工资总额]]*Employees[[#This Row],[总扣缴税额]] + Employees[[#This Row],[总常规扣款]] -> 1750.3 | K11: 500 | L11: =Employees[[#This Row],[工资总额]]-Employees[[#This Row],[税款和扣款]]-Employees[[#This Row],[其他扣款]] -> 2349.7 | N11: 100 | O11: 1 | P11: 3 | Q11: 0.023 | R11: 0.28 | S11: 0.063 | T11: 0.0145 | U11: =SUM(Employees[[#This Row],[州税]:[医疗保险税]]) -> 0.3805 | X11: =SUM(Employees[[#This Row],[保险扣款]:[其他常规扣款]]) -> 0
B12: 1049 | C12: 刘英玫 | D12: 40 | E12: 1 | I12: =SUM(Employees[[#This Row],[工作的正常时数]:[病假小时数]])*Employees[[#This Row],[计时工资]]+Employees[[#This Row],[加班小时数]]*Employees[[#This Row],[加班费率]] -> 6150 | J12: =Employees[[#This Row],[工资总额]]*Employees[[#This Row],[总扣缴税额]] + Employees[[#This Row],[总常规扣款]] -> 2590.075 | K12: 230 | L12: =Employees[[#This Row],[工资总额]]-Employees[[#This Row],[税款和扣款]]-Employees[[#This Row],[其他扣款]] -> 3329.925 | N12: 150 | O12: 1 | P12: 2 | Q12: 0.023 | R12: 0.28 | S12: 0.063 | T12: 0.0145 | U12: =SUM(Employees[[#This Row],[州税]:[医疗保险税]]) -> 0.3805 | V12: 250 | X12: =SUM(Employees[[#This Row],[保险扣款]:[其他常规扣款]]) -> 250
B13: 总计 | C13: =SUBTOTAL(103,Employees[员工姓名]) -> 9 | D13: =SUBTOTAL(109,Employees[工作的正常时数]) -> 371 | E13: =SUBTOTAL(109,Employees[假期小时数]) -> 24 | F13: =SUBTOTAL(109,Employees[病假小时数]) -> 6 | G13: =SUBTOTAL(109,Employees[加班小时数]) -> 3 | I13: =SUBTOTAL(109,Employees[工资总额]) -> 50630 | J13: =SUBTOTAL(109,Employees[税款和扣款]) -> 22394.715 | K13: =SUBTOTAL(109,Employees[其他扣款]) -> 1180 | L13: =SUBTOTAL(109,Employees[净薪金]) -> 27055.285 | V13: =SUBTOTAL(109,Employees[保险扣款]) -> 1430 | W13: =SUBTOTAL(109,Employees[其他常规扣款]) -> 1700 | X13: =SUBTOTAL(109,Employees[总常规扣款]) -> 3130

Sheet stubs_template (hidden)
C2: =CompanyName -> 嘉元实业
C3: 期间 | D3: =PeriodEnding -> 43077 | G3: 名称 | H3: =IFERROR(INDEX(Employees[员工姓名],Stub),"") -> 林国治 | K3: 员工 ID | L3: =IFERROR(INDEX(Employees[ID],Stub),"") -> 1001
C4: 纳税状态 | E4: =IFERROR(INDEX(Employees[纳税状态],Stub),"") -> 1 | G4: 联邦津贴（来自 W-4） | I4: =IFERROR(INDEX(Employees[联邦允许],Stub),"") -> 4 | K4: 工作时数 | M4: =IFERROR(INDEX(Employees[工作的正常时数],Stub),"") -> 50
C5: 小时费率 | E5: =IFERROR(INDEX(Employees[计时工资],Stub),"") -> 100 | G5: 加班费率 | I5: =IFERROR(INDEX(Employees[加班费率],Stub),"") -> 0 | K5: 病假小时数 | M5: =IFERROR(INDEX(Employees[病假小时数],Stub),"") -> 1
C6: 社会保障税 | E6: =IFERROR(INDEX(Employees[社会保障税],Stub) * INDEX(Employees[工资总额],Stub),"") -> 352.8 | G6: 联邦所得税 | I6: =IFERROR(INDEX(Employees[联邦所得税],Stub) * INDEX(Employees[工资总额],Stub),"") -> 1568 | K6: 假期小时数 | M6: =IFERROR(INDEX(Employees[假期小时数],Stub),"") -> 5
C7: 医疗保险税 | E7: =IFERROR(INDEX(Employees[医疗保险税],Stub) * INDEX(Employees[工资总额],Stub),"") -> 81.2 | G7: 州税 | I7: =IFERROR(INDEX(Employees[州税],Stub) * INDEX(Employees[工资总额],Stub),"") -> 128.8 | K7: 加班小时数 | M7: =IFERROR(INDEX(Employees[加班小时数],Stub),"") -> 0
C8: 保险扣款 | E8: =IFERROR(INDEX(Employees[保险扣款],Stub),"") -> 200 | G8: 其他常规扣款 | I8: =IFERROR(INDEX(Employees[其他常规扣款],Stub),"") -> 400 | K8: 工资总额 | M8: =IFERROR(INDEX(Employees[工资总额],Stub),"") -> 5600
C9: 总税款和 | E9: =IFERROR(INDEX(Employees[税款和扣款],Stub),"") -> 2730.8 | G9: 其他扣款 | I9: =IFERROR(INDEX(Employees[其他扣款],Stub),"") -> 200 | K9: 总税款和扣款 | M9: =IFERROR(INDEX(Employees[税款和扣款],Stub) + INDEX(Employees[其他扣款],Stub),"") -> 2930.8
C10: 常规扣款
K11: 净薪金 | M11: =IFERROR(INDEX(Employees[净薪金],Stub),"") -> 2669.2
C14: =CompanyName -> 嘉元实业
C15: 期间 | D15: =PeriodEnding -> 43077 | G15: 名称 | H15: =IFERROR(INDEX(Employees[员工姓名],Stub),"") -> 赵军 | K15: 员工 ID | L15: =IFERROR(INDEX(Employees[ID],Stub),"") -> 1002
C16: 纳税状态 | E16: =IFERROR(INDEX(Employees[纳税状态],Stub),"") -> 1 | G16: 联邦津贴（来自 W-4） | I16: =IFERROR(INDEX(Employees[联邦允许],Stub),"") -> 1 | K16: 工作时数 | M16: =IFERROR(INDEX(Employees[工作的正常时数],Stub),"") -> 40
C17: 小时费率 | E17: =IFERROR(INDEX(Employees[计时工资],Stub),"") -> 80 | G17: 加班费率 | I17: =IFERROR(INDEX(Employees[加班费率],Stub),"") -> 0 | K17: 病假小时数 | M17: =IFERROR(INDEX(Employees[病假小时数],Stub),"") -> 0
C18: 社会保障税 | E18: =IFERROR(INDEX(Employees[社会保障税],Stub) * INDEX(Employees[工资总额],Stub),"") -> 201.6 | G18: 联邦所得税 | I18: =IFERROR(INDEX(Employees[联邦所得税],Stub) * INDEX(Employees[工资总额],Stub),"") -> 896 | K18: 假期小时数 | M18: =IFERROR(INDEX(Employees[假期小时数],Stub),"") -> 0
C19: 医疗保险税 | E19: =IFERROR(INDEX(Employees[医疗保险税],Stub) * INDEX(Employees[工资总额],Stub),"") -> 46.4 | G19: 州税 | I19: =IFERROR(INDEX(Employees[州税],Stub) * INDEX(Employees[工资总额],Stub),"") -> 73.6 | K19: 加班小时数 | M19: =IFERROR(INDEX(Employees[加班小时数],Stub),"") -> 0
C20: 保险扣款 | E20: =IFERROR(INDEX(Employees[保险扣款],Stub),"") -> 0 | G20: 其他常规扣款 | I20: =IFERROR(INDEX(Employees[其他常规扣款],Stub),"") -> 100 | K20: 工资总额 | M20: =IFERROR(INDEX(Employees[工资总额],Stub),"") -> 3200
C21: 总税款和 | E21: =IFERROR(INDEX(Employees[税款和扣款],Stub),"") -> 1317.6 | G21: 其他扣款 | I21: =IFERROR(INDEX(Employees[其他扣款],Stub),"") -> 0 | K21: 总税款和扣款 | M21: =IFERROR(INDEX(Employees[税款和扣款],Stub) + INDEX(Employees[其他扣款],Stub),"") -> 1317.6
C22: 常规扣款
K23: 净薪金 | M23: =IFERROR(INDEX(Employees[净薪金],Stub),"") -> 1882.4
C26: =CompanyName -> 嘉元实业
C27: 期间 | D27: =PeriodEnding -> 43077 | G27: 名称 | H27: =IFERROR(INDEX(Employees[员工姓名],Stub),"") -> 史美萍 | K27: 员工 ID | L27: =IFERROR(INDEX(Employees[ID],Stub),"") -> 1003
C28: 纳税状态 | E28: =IFERROR(INDEX(Employees[纳税状态],Stub),"") -> 1 | G28: 联邦津贴（来自 W-4） | I28: =IFERROR(INDEX(Employees[联邦允许],Stub),"") -> 3 | K28: 工作时数 | M28: =IFERROR(INDEX(Employees[工作的正常时数],Stub),"") -> 35
C29: 小时费率 | E29: =IFERROR(INDEX(Employees[计时工资],Stub),"") -> 140 | G29: 加班费率 | I29: =IFERROR(INDEX(Employees[加班费率],Stub),"") -> 0 | K29: 病假小时数 | M29: =IFERROR(INDEX(Employees[病假小时数],Stub),"") -> 0
C30: 社会保障税 | E30: =IFERROR(INDEX(Employees[社会保障税],Stub) * INDEX(Employees[工资总额],Stub),"") -> 335.16 | G30: 联邦所得税 | I30: =IFERROR(INDEX(Employees[联邦所得税],Stub) * INDEX(Employees[工资总额],Stub),"") -> 1489.6 | K30: 假期小时数 | M30: =IFERROR(INDEX(Employees[假期小时数],Stub),"") -> 3
C31: 医疗保险税 | E31: =IFERROR(INDEX(Employees[医疗保险税],Stub) * INDEX(Employees[工资总额],Stub),"") -> 77.14 | G31: 州税 | I31: =IFERROR(INDEX(Employees[州税],Stub) * INDEX(Employees[工资总额],Stub),"") -> 122.36 | K31: 加班小时数 | M31: =IFERROR(INDEX(Employees[加班小时数],Stub),"") -> 0
C32: 保险扣款 | E32: =IFERROR(INDEX(Employees[保险扣款],Stub),"") -> 180 | G32: 其他常规扣款 | I32: =IFERROR(INDEX(Employees[其他常规扣款],Stub),"") -> 200 | K32: 工资总额 | M32: =IFERROR(INDEX(Employees[工资总额],Stub),"") -> 5320
C33: 总税款和 | E33: =IFERROR(INDEX(Employees[税款和扣款],Stub),"") -> 2404.26 | G33: 其他扣款 | I33: =IFERROR(INDEX(Employees[其他扣款],Stub),"") -> 0 | K33: 总税款和扣款 | M33: =IFERROR(INDEX(Employees[税款和扣款],Stub) + INDEX(Employees[其他扣款],Stub),"") -> 2404.26
C34: 常规扣款
K35: 净薪金 | M35: =IFERROR(INDEX(Employees[净薪金],Stub),"") -> 2915.74
C38: =CompanyName -> 嘉元实业
C39: 期间 | D39: =PeriodEnding -> 43077 | G39: 名称 | H39: =IFERROR(INDEX(Employees[员工姓名],Stub),"") -> 沙保国 | K39: 员工 ID | L39: =IFERROR(INDEX(Employees[ID],Stub),"") -> 1008
C40: 纳税状态 | E40: =IFERROR(INDEX(Employees[纳税状态],Stub),"") -> 1 | G40: 联邦津贴（来自 W-4） | I40: =IFERROR(INDEX(Employees[联邦允许],Stub),"") -> 0 | K40: 工作时数 | M40: =IFERROR(INDEX(Employees[工作的正常时数],Stub),"") -> 50
C41: 小时费率 | E41: =IFERROR(INDEX(Employees[计时工资],Stub),"") -> 200 | G41: 加班费率 | I41: =IFERROR(INDEX(Employees[加班费率],Stub),"") -> 0 | K41: 病假小时数 | M41: =IFERROR(INDEX(Employees[病假小时数],Stub),"") -> 1
C42: 社会保障税 | E42: =IFERROR(INDEX(Employees[社会保障税],Stub) * INDEX(Employees[工资总额],Stub),"") -> 705.6 | G42: 联邦所得税 | I42: =IFERROR(INDEX(Employees[联邦所得税],Stub) * INDEX(Employees[工资总额],Stub),"") -> 3136 | K42: 假期小时数 | M42: =IFERROR(INDEX(Employees[假期小时数],Stub),"") -> 5
C43: 医疗保险税 | E43: =IFERROR(INDEX(Employees[医疗保险税],Stub) * INDEX(Employees[工资总额],Stub),"") -> 162.4 | G43: 州税 | I43: =IFERROR(INDEX(Employees[州税],Stub) * INDEX(Employees[工资总额],Stub),"") -> 257.6 | K43: 加班小时数 | M43: =IFERROR(INDEX(Employees[加班小时数],Stub),"") -> 0
C44: 保险扣款 | E44: =IFERROR(INDEX(Employees[保险扣款],Stub),"") -> 150 | G44: 其他常规扣款 | I44: =IFERROR(INDEX(Employees[其他常规扣款],Stub),"") -> 0 | K44: 工资总额 | M44: =IFERROR(INDEX(Employees[工资总额],Stub),"") -> 11200
C45: 总税款和 | E45: =IFERROR(INDEX(Employees[税款和扣款],Stub),"") -> 4411.6 | G45: 其他扣款 | I45: =IFERROR(INDEX(Employees[其他扣款],Stub),"") -> 0 | K45: 总税款和扣款 | M45: =IFERROR(INDEX(Employees[税款和扣款],Stub) + INDEX(Employees[其他扣款],Stub),"") -> 4411.6
C46: 常规扣款
K47: 净薪金 | M47: =IFERROR(INDEX(Employees[净薪金],Stub),"") -> 6788.4
